bitfinex/quotes_ETHUSD_20250925
["timestamp","ask_amount","ask_price","bid_price","bid_amount"]
[1758784678174,1e-08,4023.9,4023.8,10.14293428]
[1758784678768,1e-08,4023.9,4023.8,24.64293428]
[1758784679648,1e-08,4023.9,4023.8,24.87563428]
[1758784680483,1e-08,4023.9,4023.8,22.56793428]
[1758784680648,0.70070001,4023.9,4023.8,24.63993428]
[1758784680848,0.70070001,4023.9,4023.8,23.52021298]
[1758784681552,1e-08,4023.9,4023.8,24.31221298]
[1758784682051,1e-08,4023.9,4023.8,24.55521298]
[1758784683070,1e-08,4023.9,4023.8,17.90121298]
[1758784683503,0.69620001,4023.9,4023.8,16.98521298]
[1758784683831,0.69540001,4023.9,4023.8,21.32121298]
[1758784684209,0.4541,4024.3,4024.2,2.48496595]
[1758784684393,0.4541,4024.3,4024.2,6.82696595]
[1758784684920,0.02,4024.9,4024.4,2.48483114]
[1758784685220,0.02,4024.9,4024.8,2.4845955]
[1758784685371,0.02,4024.9,4024.8,4.342]
[1758784685571,0.2621,4024.9,4024.8,21.3265955]
[1758784685887,0.7162,4024.9,4024.8,21.3265955]
[1758784686084,0.7162,4024.9,4024.8,18.842]
[1758784686413,0.7162,4024.9,4024.8,14.5]
[1758784688004,0.7162,4024.9,4024.2,2.48496256]
[1758784688201,30.0524992,4024.7,4023.8,2.48517846]
[1758784688499,6.18092917,4024.6,4023.9,14.5]
[1758784688693,0.6962,4024.5,4023.9,14.5]
[1758784688894,0.6962,4024.4,4023.9,14.5]
[1758784689097,0.6962,4024.3,4023.9,14.5]
[1758784689326,0.6962,4024.2,4023.9,14.5]
[1758784689624,4.5755474,4024.9,4023.9,14.5]
[1758784689625,0.4541,4024.5,4024.0,0.02485089]
[1758784689810,0.6962,4024.5,4024.1,4.337]
[1758784690013,0.02,4024.9,4024.3,2.48489989]
[1758784690227,0.02,4024.9,4024.4,14.5]
[1758784690589,3.0,4024.5,4024.1,2.48501661]
[1758784690813,3.0,4024.5,4022.8,0.32778308]
[1758784690814,0.6692,4024.4,4022.8,0.32778308]
[1758784691005,30.0524992,4024.0,4022.9,4.336]
[1758784691204,30.0524992,4024.0,4023.5,14.5]
[1758784691499,3.6692,4023.9,4023.5,14.5]
[1758784691693,0.6692,4023.8,4023.5,14.5]
[1758784692204,2.48544074,4023.5,4022.5,2.48600902]
[1758784692521,3.0,4023.2,4022.6,14.5]
[1758784692710,0.6692,4023.1,4022.6,14.5]
[1758784693140,2.48564588,4023.1,4022.6,14.5]
[1758784693437,0.6692,4023.0,4022.6,14.5]
[1758784693641,0.6692,4023.0,4022.1,0.02]
[1758784693642,30.0524992,4022.8,4022.1,0.02]
[1758784693955,30.0524992,4022.3,4022.1,0.02]
[1758784694106,3.6692,4022.7,4022.1,14.52]
[1758784694298,2.48601615,4022.5,4022.1,14.52]
[1758784694526,0.6692,4022.4,4022.1,14.52]
[1758784694738,0.6692,4022.3,4022.1,14.52]
[1758784695032,3.0,4022.5,4022.1,14.52]
[1758784695033,0.6692,4022.2,4022.1,14.52]
[1758784695616,0.6692,4022.2,4022.1,0.02]
[1758784695617,6.15540158,4022.2,4022.1,0.02]
[1758784696665,0.6692,4022.2,4022.1,0.02]
[1758784696820,5.0062,4022.2,4022.1,0.02]
[1758784697018,8.0062,4022.2,4022.1,0.02]
[1758784697657,3.6692,4022.2,4022.1,0.02]
[1758784697859,8.0062,4022.2,4022.1,0.02]
[1758784699347,7.7705,4022.2,4022.1,0.02]
[1758784699549,8.0062,4022.2,4022.1,0.02]
[1758784699923,3.0,4022.2,4022.1,0.02]
[1758784700130,3.0,4022.2,4022.1,2.50626339]
[1758784700434,0.2357,4022.8,4022.1,2.53112602]
[1758784700634,0.2357,4022.8,4022.4,2.48607194]
[1758784700948,4.334,4022.8,4022.5,2.51087258]
[1758784701120,4.334,4022.8,4022.3,0.02486139]
[1758784701457,3.2357,4022.7,4022.3,0.02486139]
[1758784701681,3.6692,4022.7,4022.4,14.5]
[1758784702345,2.072,4023.2,4022.1,0.02]
[1758784702346,3.0,4022.4,4022.1,0.02]
[1758784702547,3.0,4022.9,4022.5,2.48600445]
[1758784702759,3.0,4022.9,4022.6,14.5]
[1758784702981,3.0,4022.7,4022.6,14.5]
[1758784703367,3.0,4022.9,4022.6,14.5]
[1758784703563,3.0,4022.7,4022.6,14.5]
[1758784703790,37.47800331,4023.5,4022.7,2.73077171]
[1758784703987,4.332,4023.4,4023.1,2.48563174]
[1758784704292,7.332,4023.3,4023.2,2.48556739]
[1758784704454,3.0,4023.3,4023.2,2.48556739]
[1758784704654,3.0,4023.3,4022.7,0.26975892]
[1758784704655,4.332,4023.6,4023.4,2.48540294]
[1758784704984,4.332,4023.7,4023.4,2.48545236]
[1758784705281,4.332,4023.7,4023.5,2.51024252]
[1758784705485,4.331,4023.9,4023.6,2.4852933]
[1758784705688,4.331,4023.9,4023.0,2.73055586]
[1758784705989,3.0,4023.8,4023.7,2.48527474]
[1758784706353,3.0,4023.8,4023.7,16.98527474]
[1758784706656,3.0,4023.8,4023.7,14.5]
[1758784706858,3.0,4023.8,4023.7,16.98527474]
[1758784707065,2.072,4024.4,4023.7,16.98527474]
[1758784707066,0.2557,4024.9,4023.8,2.48521298]
[1758784707263,4.331,4024.8,4023.9,2.22556281]
[1758784707474,3.0,4024.7,4024.2,2.48494647]
[1758784707675,37.47800331,4024.5,4023.9,6.7766113]
[1758784707894,37.47800331,4024.5,4024.0,0.02485089]
[1758784708191,41.80900331,4024.5,4024.2,2.48493377]
[1758784708493,37.47800331,4024.5,4024.4,2.48484246]
[1758784708665,7.337,4024.5,4024.4,2.48484246]
[1758784708991,0.0192,4024.9,4024.8,2.4845955]
[1758784709396,0.0192,4024.9,4024.3,4.337]
[1758784709578,0.0192,4024.9,4024.8,14.5]
[1758784709973,0.0192,4024.9,4024.8,16.9845955]
[1758784710379,0.0192,4024.9,4024.8,14.5]
[1758784710792,0.0192,4024.9,4024.8,16.9845955]
[1758784711092,0.0192,4024.9,4024.8,17.2294955]
[1758784713094,0.0192,4024.9,4024.8,16.9845955]
[1758784713777,0.0192,4024.9,4024.8,17.2294955]
[1758784714091,0.0192,4024.9,4024.8,16.9845955]
[1758784715204,0.0192,4024.9,4024.8,17.2294955]
[1758784715418,37.71370331,4025.8,4024.8,17.2294955]
[1758784715419,0.02,4025.9,4025.8,2.48397833]
[1758784715707,0.02,4025.9,4025.8,7.05487833]
[1758784715996,0.02,4025.9,4025.8,7.50087833]
[1758784716995,1e-08,4025.9,4025.8,7.50087833]
[1758784717200,1e-08,4025.9,4025.8,8.49937198]
[1758784717559,1e-08,4025.9,4025.8,23.79137198]
[1758784717978,1e-08,4025.9,4025.8,23.91537198]
[1758784718398,1e-08,4025.9,4025.8,23.12537198]
[1758784718710,1e-08,4025.9,4025.8,25.98837198]
[1758784719685,1e-08,4025.9,4025.8,28.98837198]
[1758784720007,1e-08,4025.9,4025.8,18.67337198]
[1758784720192,1e-08,4025.9,4025.8,22.31047198]
[1758784720513,1e-08,4025.9,4025.8,21.31697833]
[1758784721727,0.71580001,4025.9,4025.8,14.5]
[1758784721885,1e-08,4025.9,4025.8,14.5]
[1758784722079,0.24450001,4025.9,4025.8,14.5]
[1758784722397,1e-08,4025.9,4025.8,21.31697833]
[1758784723011,0.71580001,4025.9,4025.8,14.5]
[1758784723418,0.71580001,4025.9,4024.5,2.48472284]
[1758784723419,2.48415353,4025.6,4024.5,2.48472284]
[1758784723629,3.7158,4025.5,4024.8,2.48454932]
[1758784723937,3.7158,4025.5,4024.9,14.5]
[1758784724099,3.2445,4025.5,4025.0,0.02484472]
[1758784724289,0.2445,4025.4,4025.2,2.48434306]
[1758784724489,0.24450001,4025.9,4025.5,2.48414643]
[1758784724711,1e-08,4025.9,4025.6,0.02484101]
[1758784724920,1e-08,4025.9,4025.7,4.337]
[1758784725118,0.7158,4025.8,4025.5,4.339]
[1758784725328,2.48397833,4025.8,4025.7,14.5]
[1758784725492,37.47800331,4025.7,4024.8,6.82353902]
[1758784725700,37.47800331,4025.7,4024.9,0.02484533]
[1758784725890,3.7158,4025.6,4024.8,6.82358263]
[1758784726089,6.19992535,4025.6,4024.8,4.339]
[1758784726319,0.2445,4025.5,4024.8,4.339]
[1758784726490,0.4713,4025.4,4024.8,4.339]
[1758784726685,0.2445,4025.3,4024.8,4.339]
[1758784726896,0.792,4025.1,4022.1,0.02]
[1758784727149,3.0,4023.1,4022.1,0.02]
[1758784727351,3.0,4022.1,4021.8,0.002]
[1758784727656,0.52080205,4022.3,4020.1,0.02]
[1758784727792,0.2445,4023.2,4021.4,0.2352]
[1758784727988,5.457,4023.1,4021.5,2.51148869]
[1758784728321,5.457,4023.1,4021.4,0.2352]
[1758784728322,3.0,4022.9,4021.8,2.48640923]
[1758784728505,3.0,4022.9,4021.4,0.2352]
[1758784728706,4.392,4022.9,4021.5,0.99427634]
[1758784728921,4.392,4022.9,4021.6,0.2352]
[1758784729094,37.72250331,4023.2,4021.6,0.2352]
[1758784729301,4.393,4023.1,4021.7,4.0217651]
[1758784729497,4.393,4023.1,4022.6,2.48589882]
[1758784729826,4.393,4023.3,4022.2,0.4689]
[1758784730034,4.393,4023.3,4022.7,2.60983844]
[1758784730215,4.393,4023.3,4022.7,0.124]
[1758784730391,0.2445,4023.2,4022.3,0.124]
[1758784730590,0.4713,4023.1,4022.3,0.124]
[1758784730905,0.4713,4023.1,4021.8,0.02486448]
[1758784730906,4.6425,4023.0,4021.8,0.02486448]
[1758784731108,4.6425,4023.0,4021.7,4.394]
[1758784731109,0.4713,4022.9,4021.9,2.4863823]
[1758784731431,0.2445,4022.8,4021.6,2.61056809]
[1758784731628,0.2445,4022.8,4022.0,2.48630762]
[1758784731925,4.397,4022.7,4022.1,0.02486263]
[1758784732136,0.2445,4023.5,4022.8,2.48580928]
[1758784732443,6.569,4023.9,4022.9,0.02485768]
[1758784732599,6.569,4023.9,4023.1,2.48563494]
[1758784732933,3.0,4023.7,4023.2,0.02485583]
[1758784733119,3.0,4023.5,4022.5,2.6100114]
[1758784733437,3.0,4023.5,4021.7,3.0]
[1758784733438,0.7158,4023.4,4021.7,3.0]
[1758784733594,3.20126036,4023.4,4022.4,2.48606131]
[1758784733791,3.2445,4023.3,4021.9,0.124]
[1758784733998,3.0,4023.1,4022.6,2.48595152]
[1758784734199,0.2445,4023.0,4021.9,0.124]
[1758784734394,0.2437,4023.0,4021.9,0.124]
[1758784734632,0.2437,4023.0,4021.8,2.48642545]
[1758784734633,3.0,4022.4,4021.8,2.48642545]
[1758784734794,9.9373,4022.4,4021.3,0.126]
[1758784735194,9.9373,4022.4,4021.7,2.4864572]
[1758784735417,9.9373,4022.4,4021.3,0.126]
[1758784735702,3.4713,4022.4,4021.3,0.126]
[1758784735902,6.465,4022.3,4021.3,0.126]
[1758784736106,6.465,4022.3,4021.3,0.002]
[1758784736107,37.47800331,4022.0,4021.3,0.002]
[1758784736408,3.0,4021.9,4021.3,0.002]
[1758784736628,3.0,4021.7,4021.3,0.002]
[1758784736811,0.7158,4021.9,4021.3,2.48874203]
[1758784736812,3.7158,4021.9,4021.3,2.48874203]
[1758784737018,3.0,4021.7,4021.3,0.002]
[1758784737413,0.7158,4021.7,4021.3,0.002]
[1758784737628,4.392,4021.6,4021.3,0.002]
[1758784737830,7.392,4021.6,4021.3,0.002]
[1758784738352,0.7158,4021.5,4021.3,0.002]
[1758784738654,3.0,4021.4,4021.3,0.002]
[1758784738952,3.7158,4021.4,4021.3,0.002]
[1758784739152,8.1068,4021.4,4021.3,0.002]
[1758784739357,10.1788,4021.4,4021.3,0.002]
[1758784739917,13.45749617,4021.4,4021.3,0.002]
[1758784740122,3.7158,4021.4,4021.3,0.002]
[1758784740367,10.1798,4021.4,4021.3,0.002]
[1758784740531,3.0,4021.9,4021.3,0.002]
[1758784740721,0.7158,4021.4,4021.3,0.002]
[1758784741121,10.1808,4021.4,4021.3,0.002]
[1758784741550,45.58680331,4021.4,4021.3,0.002]
[1758784741758,3.792,4021.3,4020.1,0.02]
[1758784741961,40.47800331,4020.2,4020.1,0.02]
[1758784742270,7.398,4020.2,4020.1,0.02]
[1758784742431,47.64460331,4020.2,4020.1,0.02]
[1758784743360,41.17460331,4020.2,4020.1,0.02]
[1758784743673,47.64460331,4020.2,4020.1,0.02]
[1758784744290,45.57160331,4020.2,4020.1,0.02]
[1758784744495,47.64360331,4020.2,4020.1,0.02]
[1758784744990,41.17460331,4020.2,4020.1,0.02]
[1758784745306,47.64160331,4020.2,4020.1,0.022]
[1758784746543,48.84704174,4020.2,4020.1,0.022]
[1758784746744,50.92004174,4020.2,4020.1,0.022]
[1758784747477,3.2294,4020.2,4020.1,0.022]
[1758784747647,7.391,4020.2,4020.1,0.022]
[1758784747985,37.47800331,4020.9,4020.2,2.48743843]
[1758784747986,4.391,4020.3,4020.2,2.48743843]
[1758784748192,39.55100331,4020.9,4020.5,2.4872332]
[1758784748395,4.391,4020.8,4020.1,0.022]
[1758784748548,3.0,4020.3,4020.1,0.022]
[1758784748746,2.48599623,4022.6,4020.1,0.022]
[1758784748747,37.47800331,4020.9,4020.6,2.48713265]
[1758784748961,4.391,4020.8,4020.6,2.48713265]
[1758784749167,4.391,4020.7,4020.6,2.48713265]
[1758784749364,2.073,4021.2,4020.5,0.02487252]
[1758784749568,7.39,4021.1,4021.0,2.48694354]
[1758784749765,0.2294,4022.1,4020.6,0.4628]
[1758784750047,0.225,4022.0,4020.7,0.25797129]
[1758784750254,0.2294,4022.1,4020.7,0.25797129]
[1758784750570,3.2294,4022.1,4020.8,0.4628]
[1758784750883,3.2294,4022.1,4020.1,0.4506]
[1758784750884,37.47800331,4021.3,4020.1,0.4506]
[1758784751081,37.47800331,4021.3,4020.3,2.48737656]
[1758784751082,4.389,4021.2,4020.3,2.48737656]
[1758784751283,4.389,4021.2,4021.0,2.48693585]
[1758784751483,0.2254,4021.7,4020.9,2.48700539]
[1758784751484,3.0,4021.7,4020.9,2.48700539]
[1758784751690,3.0,4021.5,4021.2,2.48676917]
[1758784751997,3.0,4021.5,4021.3,2.48672577]
[1758784752295,3.0,4021.5,4020.7,0.4286]
[1758784752499,3.0,4021.7,4020.7,0.74333936]
[1758784752785,4.388,4021.7,4020.8,0.7841]
[1758784753088,7.388,4021.7,4021.6,2.4865725]
[1758784753584,7.388,4021.7,4020.9,0.2315]
[1758784753745,7.388,4021.7,4020.4,0.2315]
[1758784753746,44.86600331,4021.7,4020.4,0.2315]
[1758784753952,3.0,4021.6,4020.5,0.124]
[1758784754288,37.47800331,4021.1,4020.5,2.48725275]
[1758784754491,4.386,4021.0,4020.5,2.48720903]
[1758784754695,4.386,4021.0,4020.6,2.48714672]
[1758784754852,3.0,4021.6,4020.1,0.022]
[1758784755057,3.0,4021.4,4020.8,2.48706725]
[1758784755390,3.0,4021.9,4020.8,0.2315]
[1758784755592,5.073,4022.3,4021.9,2.48636915]
[1758784755893,0.02,4022.9,4022.5,2.48597547]
[1758784756088,6.461,4022.8,4022.3,2.48611057]
[1758784756290,6.461,4022.8,4022.4,2.48602881]
[1758784756663,3.0,4022.7,4021.6,0.2315]
[1758784756859,3.0,4022.7,4022.0,2.48628153]
[1758784756860,3.6925,4022.7,4022.0,2.48628153]
[1758784757058,2.9530131,4022.7,4021.2,4.387]
[1758784757292,37.47800331,4022.8,4021.3,3.17171831]
[1758784757492,0.02,4022.9,4021.5,0.124]
[1758784757697,0.02,4022.9,4022.8,2.48583076]
[1758784757899,4.407,4022.9,4022.8,2.48583076]
[1758784758102,0.02,4022.9,4022.8,2.48583076]
[1758784758287,4.407,4022.9,4022.8,2.48583076]
[1758784758804,4.407,4022.9,4022.7,0.02485892]
[1758784759174,3.2254,4022.8,4022.0,2.48632309]
[1758784759391,3.0,4022.6,4021.6,0.2315]
[1758784759592,3.0,4022.6,4022.0,2.48627759]
[1758784759793,3.0,4022.6,4022.2,2.48619385]
[1758784760098,3.4663,4022.6,4022.3,2.48612791]
[1758784760297,4.383,4022.5,4021.7,2.48645824]
[1758784760500,4.383,4022.5,4022.4,2.48606977]
[1758784761005,4.383,4022.5,4022.2,2.48620158]
[1758784761303,0.02,4022.9,4022.8,2.48583076]
[1758784762002,0.02,4022.9,4022.8,3.17078906]
[1758784762298,0.02,4022.9,4022.3,0.2315]
[1758784762498,0.02,4022.9,4021.9,6.454]
[1758784762679,0.02,4022.9,4022.0,0.97323979]
[1758784762883,0.02,4022.9,4022.5,2.48599454]
[1758784763089,4.381,4022.8,4021.9,6.6855]
[1758784763278,4.381,4022.8,4021.9,2.71785567]
[1758784763478,4.381,4022.8,4021.6,2.4865725]
[1758784763712,4.381,4022.8,4022.2,2.48614715]
[1758784763885,4.381,4022.8,4021.7,0.0248651]
[1758784764209,3.50935,4022.7,4021.5,0.2315]
[1758784764412,3.0,4022.7,4021.5,0.2315]
[1758784765314,3.0,4022.7,4022.2,2.48617455]
[1758784765500,3.0,4022.7,4021.5,0.2315]
[1758784765501,0.6925,4022.6,4021.5,0.2315]
[1758784765679,0.6925,4022.6,4020.9,0.2315]
[1758784765883,0.6925,4022.6,4020.7,2.9157216]
[1758784765884,3.17845567,4022.6,4021.4,2.48664676]
[1758784766092,0.6925,4022.5,4020.7,0.4286]
[1758784766306,5.48615216,4022.3,4021.3,2.48671115]
[1758784766506,0.6925,4022.2,4021.4,2.48668066]
[1758784766707,31.33527327,4022.8,4020.4,2.072]
[1758784766708,0.4671,4022.7,4021.3,0.2315]
[1758784767014,3.0,4022.5,4021.5,2.48663434]
[1758784767178,3.0,4022.5,4022.3,2.48613489]
[1758784767378,4.375,4022.4,4022.3,2.48613977]
[1758784767611,0.6925,4023.2,4022.3,2.48613977]
[1758784767812,0.6925,4023.2,4022.6,2.48593722]
[1758784768108,0.6925,4023.2,4021.9,0.2315]
[1758784768314,4.373,4022.8,4021.9,0.2315]
[1758784768713,4.373,4022.8,4022.5,2.48595794]
[1758784769082,4.372,4022.7,4022.6,2.48591576]
[1758784769281,4.372,4022.7,4021.9,0.79480666]
[1758784769282,4.371,4022.8,4022.7,2.48584733]
[1758784769510,4.5964,4022.8,4022.1,2.48623987]
[1758784769708,4.5964,4022.8,4021.9,0.79480666]
[1758784769917,3.4671,4022.7,4021.7,0.124]
[1758784770213,3.0,4022.5,4021.4,0.2315]
[1758784770416,3.0,4022.5,4020.9,0.2315]
[1758784770632,0.6925,4022.4,4021.6,2.48656751]
[1758784770834,3.0,4022.3,4021.2,2.48677049]
[1758784771036,0.2254,4022.7,4021.3,0.25636758]
[1758784771220,4.377,4022.5,4022.2,2.4861864]
[1758784771392,3.0,4022.4,4022.2,2.4861864]
[1758784771590,0.2254,4022.7,4022.1,2.511115]
[1758784771789,0.2254,4022.7,4021.8,2.48644885]
[1758784771989,7.376,4022.6,4022.3,2.48609233]
[1758784772194,3.0,4022.5,4022.2,2.48620041]
[1758784772389,3.0,4022.5,4021.9,2.48637805]
[1758784772638,3.0,4022.5,4022.2,2.48619015]
[1758784772944,4.374,4022.6,4022.5,2.48596296]
[1758784773241,4.374,4022.6,4021.7,0.2315]
[1758784773594,4.374,4022.6,4021.8,0.3146718]
[1758784773789,4.374,4022.6,4022.3,2.48611156]
[1758784773992,0.021,4022.9,4021.7,0.2315]
[1758784774314,4.372,4022.8,4022.7,2.48588034]
[1758784774518,3.0,4023.4,4021.8,0.02486448]
[1758784774519,0.02,4023.9,4022.3,4.13]
[1758784774693,0.02,4023.9,4023.8,2.48521298]
[1758784775001,0.02,4023.9,4023.8,2.5100651]
[1758784775204,1e-08,4023.9,4023.8,3.1701651]
[1758784775528,1e-08,4023.9,4023.8,3.14531298]
[1758784777912,1e-08,4023.9,4023.8,17.64531298]
[1758784778117,1e-08,4023.9,4023.8,20.03659913]
[1758784778322,1e-08,4023.9,4023.8,19.80509913]
[1758784778528,1e-08,4023.9,4023.8,19.37649913]
[1758784779025,1e-08,4023.9,4023.8,19.60799913]
[1758784780031,1e-08,4023.9,4023.8,19.73199913]
[1758784780215,1e-08,4023.9,4023.8,16.98521298]
[1758784780835,0.68410001,4023.9,4023.8,14.5]
[1758784781649,0.68410001,4023.9,4023.8,16.98521298]
[1758784782134,0.68410001,4023.9,4020.1,1.2439]
[1758784782353,0.68410001,4023.9,4021.6,31.33527327]
[1758784782503,1e-08,4023.9,4023.8,2.48521298]
[1758784782836,1e-08,4023.9,4023.8,16.98521298]
[1758784785516,2.5271,4024.6,4023.8,16.98521298]
[1758784785517,0.45430001,4024.6,4023.8,14.5]
[1758784785717,0.229,4024.5,4023.8,14.5]
[1758784786129,3.229,4024.4,4023.8,14.5]
[1758784786327,31.33527327,4024.0,4023.8,14.5]
[1758784786528,0.229,4023.9,4023.8,14.5]
[1758784787209,3.229,4023.9,4023.8,14.5]
[1758784787614,3.6841,4023.9,4023.8,14.5]
[1758784787818,3.6841,4023.9,4022.5,4.382]
[1758784788121,0.6841,4023.8,4022.5,4.382]
[1758784788312,0.229,4023.7,4023.0,2.48565734]
[1758784788628,0.229,4023.7,4023.1,2.48563225]
[1758784788831,0.229,4023.7,4023.1,2.48564171]
[1758784789035,0.229,4023.7,4022.5,4.382]
[1758784789248,0.229,4023.7,4023.2,2.48557907]
[1758784789648,3.0,4023.9,4023.0,2.48566535]
[1758784789944,3.0,4023.9,4022.7,2.48589255]
[1758784789945,0.6841,4023.6,4022.7,2.48589255]
[1758784790112,0.6841,4023.5,4022.6,14.5]
[1758784790314,3.0,4023.3,4022.6,14.5]
[1758784790538,0.229,4023.2,4022.6,16.98590653]
[1758784790735,0.6841,4023.2,4022.6,14.5]
[1758784790944,4.606,4023.1,4022.7,2.48588459]
[1758784791265,3.6841,4023.0,4022.6,14.5]
[1758784791544,6.449,4023.1,4022.6,14.5]
[1758784791545,4.375,4022.9,4022.6,14.5]
[1758784791751,4.375,4022.9,4022.6,16.98594253]
[1758784791949,4.375,4022.9,4022.6,14.5]
[1758784792246,0.229,4022.8,4022.6,16.9859499]
[1758784792416,0.229,4022.8,4022.6,16.98594954]
[1758784792749,3.0,4023.6,4022.7,2.48583766]
[1758784792913,6.16960806,4023.4,4022.6,14.5]
[1758784793113,0.6841,4023.3,4022.6,14.5]
[1758784793334,0.229,4023.2,4022.6,14.5]
[1758784793550,3.0,4023.6,4022.6,14.5]
[1758784793858,3.0,4023.4,4022.7,0.02485892]
[1758784794151,3.0,4023.4,4022.7,1.54413481]
[1758784794354,3.0,4023.4,4023.0,2.485654]
[1758784794849,3.0,4023.4,4023.0,2.48569409]
[1758784795052,3.0,4023.4,4022.9,0.02485768]
[1758784795053,0.4551,4023.7,4022.9,2.51061779]
[1758784795350,3.0,4023.5,4023.0,2.48570038]
[1758784795742,3.6841,4023.5,4023.0,2.48570038]
[1758784796054,3.6841,4023.5,4022.7,1.51927589]
[1758784796556,3.6841,4023.5,4022.7,4.00516165]
[1758784796755,3.6841,4023.5,4023.1,2.48560228]
[1758784797142,3.6841,4023.5,4023.0,2.48568624]
[1758784797348,3.229,4023.5,4023.1,2.48562108]
[1758784797563,3.229,4023.5,4023.0,2.4857027]
[1758784797723,3.0,4023.5,4022.7,1.51927589]
[1758784798056,12.39011753,4058.2,4022.7,1.51927589]
[1758784798057,2.072,4023.8,4023.4,2.48543797]
[1758784798356,3.0,4023.6,4023.4,2.48540617]
[1758784798859,4.373,4024.3,4023.7,2.48522941]
[1758784799160,4.373,4024.3,4023.5,2.72007048]
[1758784799161,3.0,4024.2,4022.7,1.51927589]
[1758784799323,0.6841,4024.1,4022.8,4.372]
[1758784799523,0.229,4024.0,4022.7,0.2347]
[1758784799754,0.229,4024.0,4023.7,2.48522388]
[1758784799953,2.4846974,4024.7,4022.8,4.371]
[1758784799954,3.0,4024.5,4023.0,2.72040718]
[1758784800142,0.38980676,4023.4,4023.3,2.48552183]
[1758784800874,0.38980676,4023.4,4022.6,0.002]
[1758784801101,31.33527327,4023.1,4022.6,0.002]
[1758784801242,3.0,4023.0,4022.6,0.002]
[1758784801443,3.27789255,4022.7,4022.6,0.002]
[1758784801742,3.27789255,4022.7,4021.1,0.02]
[1758784801743,0.3699,4022.1,4021.1,0.02]
[1758784802090,3.792,4021.9,4021.1,0.02]
[1758784802240,0.792,4021.4,4021.1,0.02]
[1758784802443,3.27881985,4021.2,4021.1,0.02]
[1758784802640,3.792,4021.2,4021.1,0.02]
[1758784802889,10.1529,4021.2,4021.1,0.02]
[1758784803180,13.43171985,4021.2,4021.1,0.02]
[1758784803773,10.9449,4021.2,4021.1,0.02]
[1758784803941,3.0,4021.2,4021.1,0.02]
[1758784804140,10.1529,4021.2,4021.1,0.02]
[1758784804365,3.7029,4021.2,4021.1,0.02]
[1758784804566,8.0809,4021.2,4021.1,0.02]
[1758784805145,8.8729,4021.2,4021.1,0.02]
[1758784805555,11.35971985,4021.2,4021.1,0.02]
[1758784806481,13.43171985,4021.2,4021.1,0.02]
[1758784810014,11.35371985,4021.2,4021.1,0.02]
[1758784810174,13.42671985,4021.2,4021.1,0.02]
[1758784810382,6.98171985,4021.2,4021.1,0.02]
[1758784810921,13.42391985,4021.2,4021.1,0.02]
[1758784811765,3.27925282,4020.5,4020.1,0.022]
[1758784811929,38.98252609,4020.5,4020.1,0.022]
[1758784812231,39.67702609,4020.5,4020.1,0.022]
[1758784812899,42.67702609,4020.5,4020.1,0.022]
[1758784815298,38.30902609,4020.5,4020.1,0.022]
[1758784815499,44.74802609,4020.5,4020.1,0.022]
[1758784816714,38.30902609,4020.5,4020.1,0.022]
[1758784816914,44.74902609,4020.5,4020.1,0.022]
[1758784818229,44.74702609,4020.5,4020.1,0.022]
[1758784820443,2.48805732,4019.2,4019.1,0.02]
[1758784820605,50.25735969,4019.2,4019.1,0.02]
[1758784821540,0.792,4019.1,4018.6,0.70241]
[1758784821739,3.0,4018.9,4018.1,0.02]
[1758784821905,3.0,4018.7,4018.2,2.7385214]
[1758784822109,4.358,4018.6,4018.3,2.48859743]
[1758784822321,4.358,4018.6,4018.4,0.2499]
[1758784822848,2.074,4018.9,4018.5,0.2499]
[1758784823138,3.0,4018.7,4018.6,0.2499]
[1758784823314,3.0,4018.7,4018.6,2.4884288]
[1758784823517,2.074,4019.2,4018.8,2.48829134]
[1758784823716,40.03305628,4019.7,4018.9,2.95573574]
[1758784823941,3.0,4019.5,4019.0,0.7174]
[1758784824142,37.54530237,4020.5,4019.1,0.7174]
[1758784824143,4.356,4019.4,4019.1,0.7174]
[1758784824343,4.356,4019.3,4019.2,3.20545732]
[1758784824840,4.356,4019.3,4019.2,0.2499]
[1758784825040,4.356,4019.3,4019.2,0.7174]
[1758784825205,4.356,4019.3,4019.2,3.20545248]
[1758784825543,4.356,4019.3,4019.2,0.7174]
[1758784826129,37.56530237,4020.9,4019.9,2.48758184]
[1758784826445,37.56530237,4020.9,4018.2,2.48862617]
[1758784826446,6.43,4020.8,4020.0,0.7174]
[1758784826654,3.0,4020.3,4019.5,0.7174]
[1758784826869,3.0,4020.1,4019.5,0.7174]
[1758784827073,4.356,4020.0,4019.6,0.2499]
[1758784827284,3.0,4020.3,4019.9,2.48756848]
[1758784827580,7.355,4020.4,4020.0,0.7174]
[1758784827736,3.0,4020.2,4020.1,2.48750031]
[1758784828367,3.0,4020.2,4019.8,2.48768333]
[1758784828676,0.39013514,4020.3,4020.2,2.48743843]
[1758784828887,4.74413514,4020.3,4020.2,2.48743843]
[1758784829043,4.74413514,4020.3,4020.2,3.20483843]
[1758784829753,4.74413514,4020.3,4020.2,0.7174]
[1758784830241,4.354,4020.3,4020.2,3.20483843]
[1758784830446,4.354,4020.3,4020.2,0.7174]
[1758784831541,4.354,4020.3,4020.2,0.684109]
[1758784831954,0.02,4020.9,4020.5,2.4871951]
[1758784832279,3.0,4020.7,4020.5,2.48721223]